fUST/lending_fUST_20240914
["ID","MTS","AMOUNT","RATE_DAILY","PERIOD"]
[338130896,1726288292455,-478.093966,0.00012602,2]
[338130897,1726288292464,-199.825326,0.00012602,2]
[338130898,1726288292473,-771.92,0.00012602,2]
[338130899,1726288292484,-199.825326,0.00012602,2]
[338130900,1726288292495,-1179.28,0.00012602,2]
[338130901,1726288292505,-500.0,0.00012602,2]
[338130902,1726288292516,-500.0,0.00012602,2]
[338130903,1726288292526,-155.324845,0.00012602,2]
[338130904,1726288292536,-500.0,0.00012602,2]
[338130905,1726288292547,-538.69,0.00012602,2]
[338130906,1726288292558,-155.324845,0.00012602,2]
[338130907,1726288292569,-500.0,0.00012602,2]
[338130908,1726288292579,-500.0,0.00012602,2]
[338130909,1726288292589,-500.0,0.00012602,2]
[338130910,1726288292598,-729.42,0.00012602,2]
[338130911,1726288292607,-500.0,0.00012602,2]
[338130912,1726288292621,-4163.88,0.00012602,2]
[338130913,1726288292631,-500.0,0.00012602,2]
[338130914,1726288292640,-500.0,0.00012602,2]
[338130915,1726288292651,-500.0,0.00012602,2]
[338130916,1726288292661,-500.0,0.00012602,2]
[338130917,1726288292671,-500.0,0.00012602,2]
[338130918,1726288292681,-466.572096,0.00012602,2]
[338130919,1726288292694,-17291.4,0.00012602,2]
[338130920,1726288292706,-466.572096,0.00012602,2]
[338130921,1726288292717,-500.0,0.00012602,2]
[338130922,1726288292727,-238.59392,0.00012602,2]
[338130923,1726288292738,-835.92147,0.00012602,2]
[338130924,1726288292749,-238.59392,0.00012602,2]
[338130925,1726288292760,-500.0,0.00012602,2]
[338130926,1726288292770,-835.92147,0.00012602,2]
[338130927,1726288292783,-500.0,0.00012602,2]
[338130928,1726288292793,-519.61148343,0.00012602,2]
[338130929,1726288292805,-500.0,0.00012602,2]
[338130930,1726288292816,-2999.39,0.00012602,2]
[338130931,1726288292827,-500.0,0.00012602,2]
[338130932,1726288292839,-507.13050968,0.00012602,2]
[338130933,1726288292849,-500.0,0.00012602,2]
[338130934,1726288292861,-500.0,0.00012602,2]
[338130935,1726288292871,-675.64,0.00012602,2]
[338130936,1726288292881,-500.0,0.00012602,2]
[338130937,1726288292892,-500.0,0.00012602,2]
[338130938,1726288292902,-623.26,0.00012602,2]
[338130939,1726288292913,-500.0,0.00012602,2]
[338130940,1726288292923,-500.0,0.00012602,2]
[338130941,1726288292933,-500.0,0.00012602,2]
[338130942,1726288292944,-500.0,0.00012602,2]
[338130943,1726288292953,-3458.33,0.00012602,2]
[338130944,1726288292963,-500.0,0.00012602,2]
[338130945,1726288292973,-509.31,0.00012602,2]
[338130946,1726288292983,-500.0,0.00012602,2]
[338130947,1726288292994,-6026.45,0.00012602,2]
[338130948,1726288293005,-151.0,0.00012602,2]
[338130949,1726288293015,-500.0,0.00012602,2]
[338130950,1726288293025,-500.0,0.00012602,2]
[338130951,1726288293035,-500.0,0.00012602,2]
[338130952,1726288293047,-873.79,0.00012602,2]
[338130953,1726288293057,-500.0,0.00012602,2]
[338130954,1726288293067,-289.12963643,0.00012602,2]
[338130955,1726288293078,-500.0,0.00012602,2]
[338130956,1726288293090,-643.96526587,0.00012602,2]
[338130957,1726288293100,-500.0,0.00012602,2]
[338130958,1726288293110,-500.0,0.00012602,2]
[338130959,1726288293121,-500.0,0.00012602,2]
[338130960,1726288293131,-731.61,0.00012602,2]
[338130961,1726288293141,-500.0,0.00012602,2]
[338130962,1726288293152,-509.65589236,0.00012602,2]
[338130963,1726288293162,-500.0,0.00012602,2]
[338130964,1726288293172,-500.0,0.00012602,2]
[338130965,1726288293183,-520.24,0.00012602,2]
[338130966,1726288293194,-597.72,0.00012602,2]
[338130967,1726288293204,-500.0,0.00012602,2]
[338130968,1726288293216,-610.41,0.00012602,2]
[338130969,1726288293226,-500.0,0.00012602,2]
[338130970,1726288293235,-500.0,0.00012602,2]
[338130971,1726288293245,-1139.624587,0.00012602,2]
[338130972,1726288293255,-500.0,0.00012602,2]
[338130973,1726288293265,-698.28,0.00012602,2]
[338130974,1726288293274,-500.0,0.00012602,2]
[338130975,1726288293284,-1139.624587,0.00012602,2]
[338130976,1726288293294,-500.0,0.00012602,2]
[338130977,1726288293304,-559.06208372,0.00012602,2]
[338130978,1726288293313,-500.0,0.00012602,2]
[338130979,1726288293323,-500.0,0.00012602,2]
[338130980,1726288293333,-500.0,0.00012602,2]
[338130981,1726288293342,-500.0,0.00012602,2]
[338130982,1726288293351,-500.0,0.00012602,2]
[338130983,1726288293361,-500.0,0.00012602,2]
[338130984,1726288293370,-641.23376617,0.00012602,2]
[338130985,1726288293381,-500.0,0.00012602,2]
[338130986,1726288293391,-500.0,0.00012602,2]
[338130987,1726288293401,-765.23,0.00012602,2]
[338130988,1726288293411,-1974.5,0.00012602,2]
[338130989,1726288293420,-509.11521184,0.00012602,2]
[338130990,1726288293430,-1161.96,0.00012602,2]
[338130991,1726288293441,-500.0,0.00012602,2]
[338130992,1726288293451,-648.64,0.00012602,2]
[338130993,1726288293461,-641.19,0.00012602,2]
[338130994,1726288293471,-501.1,0.00012602,2]
[338130995,1726288293480,-500.0,0.00012602,2]
[338130996,1726288293579,-1000.0,0.00012642,2]
[338130997,1726288293589,-1000.0,0.00012642,2]
[338130998,1726288293599,-1000.0,0.00012642,2]
[338130999,1726288293610,-287.68490201,0.00012642,2]
[338131000,1726288293623,-1000.0,0.000128,2]
[338131001,1726288293632,-1000.0,0.000128,3]
[338131002,1726288293642,-1000.0,0.000128,4]
[338131003,1726288293653,-1000.0,0.000128,5]
[338131004,1726288293664,-1000.0,0.000128,6]
[338131005,1726288293675,-151.0,0.00012876,2]
[338131006,1726288293685,-500.0,0.00012876,2]
[338131007,1726288293696,-503.41917383,0.00012876,2]
[338131008,1726288293706,-500.0,0.00012876,2]
[338131009,1726288293716,-500.0,0.00012876,2]
[338131010,1726288293726,-500.0,0.00012876,2]
[338131011,1726288293735,-500.0,0.00012876,2]
[338131012,1726288293745,-500.0,0.00012876,2]
[338131013,1726288293755,-500.0,0.00012876,2]
[338131014,1726288293766,-500.0,0.00012876,2]
[338131015,1726288293776,-549.64768549,0.00012876,2]
[338131016,1726288293785,-500.0,0.00012876,2]
[338131017,1726288293795,-500.0,0.00012876,2]
[338131018,1726288293807,-505.48428116,0.00012876,2]
[338131019,1726288293816,-194.46705775,0.00012876,2]
[338131020,1726288293829,-500.0,0.00012876,2]
[338131021,1726288293843,-516.51248917,0.00012876,2]
[338131022,1726288293855,-500.0,0.00012876,2]
[338131023,1726288293865,-507.48331794,0.00012876,2]
[338131024,1726288293875,-223.61218575,0.00012876,2]
[338131025,1726288293885,-500.0,0.00012876,2]
[338131026,1726288293896,-508.39327009,0.00012876,2]
[338131027,1726288293907,-500.0,0.00012876,2]
[338131028,1726288293917,-620.12334223,0.00012876,2]
[338131029,1726288293928,-500.0,0.00012876,2]
[338131030,1726288293939,-500.0,0.00012876,2]
[338131031,1726288293948,-500.0,0.00012876,2]
[338131032,1726288293958,-466.86416953,0.00012876,2]
[338131033,1726288293969,-500.0,0.00012876,2]
[338131034,1726288293979,-500.0,0.00012876,2]
[338131035,1726288293990,-462.67389565,0.00012876,2]
[338131036,1726288294000,-500.0,0.00012876,2]
[338131037,1726288294011,-500.0,0.00012876,2]
[338131038,1726288294023,-500.0,0.00012876,2]
[338131039,1726288294034,-500.0,0.00012876,2]
[338131040,1726288294045,-500.0,0.00012876,2]
[338131041,1726288294055,-500.0,0.00012876,2]
[338131042,1726288294067,-570.6442687,0.00012876,2]
[338131043,1726288294078,-500.0,0.00012876,2]
[338131044,1726288294087,-533.07,0.00012876,2]
[338131045,1726288294098,-2896.96,0.00012876,2]
[338131046,1726288294107,-500.0,0.00012876,2]
[338131047,1726288294117,-500.0,0.00012876,2]
[338131048,1726288294127,-512.14097601,0.00012876,2]
[338131049,1726288294137,-500.0,0.00012876,2]
[338131050,1726288294147,-500.0,0.00012876,2]
[338131051,1726288294157,-500.0,0.00012876,2]
[338131052,1726288294167,-500.0,0.00012876,2]
[338131053,1726288294178,-614.54,0.00012876,2]
[338131054,1726288294188,-500.0,0.00012876,2]
[338131055,1726288294197,-500.0,0.00012876,2]
[338131056,1726288294207,-500.0,0.00012876,2]
[338131057,1726288294218,-500.0,0.00012876,2]
[338131058,1726288294229,-586.93169074,0.00012876,2]
[338131059,1726288294239,-500.0,0.00012876,2]
[338131060,1726288294249,-627.53,0.00012876,2]
[338131061,1726288294258,-500.0,0.00012876,2]
[338131062,1726288294268,-582.99,0.00012876,2]
[338131063,1726288294277,-500.0,0.00012876,2]
[338131064,1726288294288,-872.57,0.00012876,2]
[338131065,1726288294298,-513.08015463,0.00012876,2]
[338131066,1726288294308,-1337.62,0.00012876,2]
[338131067,1726288294319,-500.0,0.00012876,2]
[338131068,1726288294328,-500.0,0.00012876,2]
[338131069,1726288294339,-500.0,0.00012876,2]
[338131070,1726288294348,-375.89778461,0.00012876,2]
[338131071,1726288294357,-500.0,0.00012876,2]
[338131072,1726288294367,-500.0,0.00012876,2]
[338131073,1726288294377,-500.0,0.00012876,2]
[338131074,1726288294387,-500.0,0.00012876,2]
[338131075,1726288294396,-500.0,0.00012876,2]
[338131076,1726288294407,-858.33,0.00012876,2]
[338131077,1726288294417,-500.0,0.00012876,2]
[338131078,1726288294426,-500.0,0.00012876,2]
[338131079,1726288294438,-507.64768056,0.00012876,2]
[338131080,1726288294448,-500.0,0.00012876,2]
[338131081,1726288294458,-500.0,0.00012876,2]
[338131082,1726288294468,-500.0,0.00012876,2]
[338131083,1726288294477,-500.0,0.00012876,2]
[338131084,1726288294488,-500.0,0.00012876,2]
[338131085,1726288294497,-414.69476552,0.00012876,2]
[338131086,1726288294507,-500.0,0.00012876,2]
[338131087,1726288294516,-759.03,0.00012876,2]
[338131088,1726288294526,-2617.46,0.00012876,2]
[338131089,1726288294536,-500.0,0.00012876,2]
[338131090,1726288294545,-172.97870371,0.00012876,2]
[338131091,1726288294554,-500.0,0.00012876,2]
[338131092,1726288294564,-500.0,0.00012876,2]
[338131093,1726288294573,-500.0,0.00012876,2]
[338131094,1726288294583,-500.0,0.00012876,2]
[338131095,1726288294592,-500.0,0.00012876,2]
[338131096,1726288294602,-500.0,0.00012876,2]
[338131097,1726288294611,-415.25728582,0.00012876,2]
[338131098,1726288294623,-500.0,0.00012876,2]
[338131099,1726288294634,-500.0,0.00012876,2]
[338131100,1726288294644,-500.0,0.00012876,2]
[338131101,1726288294654,-5361.21,0.00012876,2]
[338131102,1726288294664,-1342.53,0.00012876,2]
[338131103,1726288294675,-500.0,0.00012876,2]
[338131104,1726288294686,-956.17,0.00012876,2]
[338131105,1726288294696,-500.0,0.00012876,2]
[338131106,1726288294708,-771.92,0.00012876,2]
[338131107,1726288294719,-1179.28,0.00012876,2]
[338131108,1726288294730,-500.0,0.00012876,2]
[338131109,1726288294741,-500.0,0.00012876,2]
[338131110,1726288294751,-500.0,0.00012876,2]
[338131111,1726288294762,-538.69,0.00012876,2]
[338131112,1726288294774,-500.0,0.00012876,2]
[338131113,1726288294785,-500.0,0.00012876,2]
[338131114,1726288294795,-500.0,0.00012876,2]
[338131115,1726288294807,-729.42,0.00012876,2]
[338131116,1726288294819,-500.0,0.00012876,2]
[338131117,1726288294828,-4163.88,0.00012876,2]
[338131118,1726288294841,-500.0,0.00012876,2]
[338131119,1726288294853,-500.0,0.00012876,2]
[338131120,1726288294863,-500.0,0.00012876,2]
[338131121,1726288294874,-327.91651858,0.00012876,2]
[338131122,1726288294885,-500.0,0.00012876,2]
[338131123,1726288294895,-17291.4,0.00012876,2]
[338131124,1726288294907,-500.0,0.00012876,2]
[338131125,1726288294919,-500.0,0.00012876,2]
[338131126,1726288294930,-500.0,0.00012876,2]
[338131127,1726288294941,-500.0,0.00012876,2]
[338131128,1726288294952,-2999.39,0.00012876,2]
[338131129,1726288294961,-500.0,0.00012876,2]
[338131130,1726288294971,-500.0,0.00012876,2]
[338131131,1726288294981,-500.0,0.00012876,2]
[338131132,1726288294994,-675.64,0.00012876,2]
[338131133,1726288295004,-565.66965879,0.00012876,2]
[338131134,1726288295014,-500.0,0.00012876,2]
[338131135,1726288295025,-623.26,0.00012876,2]
[338131136,1726288295035,-500.0,0.00012876,2]
[338131137,1726288295045,-500.0,0.00012876,2]
[338131138,1726288295057,-500.0,0.00012876,2]
[338131139,1726288295067,-500.0,0.00012876,2]
[338131140,1726288295080,-3458.33,0.00012876,2]
[338131141,1726288295092,-500.0,0.00012876,2]
[338131142,1726288295103,-509.31,0.00012876,2]
[338131143,1726288295114,-329.238167,0.00012876,2]
[338131144,1726288295125,-6026.45,0.00012876,2]
[338131145,1726288295134,-151.0,0.00012876,2]
[338131146,1726288295143,-500.0,0.00012876,2]
[338131147,1726288295155,-500.0,0.00012876,2]
[338131148,1726288295165,-500.0,0.00012876,2]
[338131149,1726288295176,-873.79,0.00012876,2]
[338131150,1726288295186,-500.0,0.00012876,2]
[338131151,1726288295196,-500.0,0.00012876,2]
[338131152,1726288295204,-500.0,0.00012876,2]
[338131153,1726288295214,-512.86847925,0.00012876,2]
[338131154,1726288295223,-509.10166618,0.00012876,2]
[338131155,1726288295234,-731.61,0.00012876,2]
[338131156,1726288295243,-500.0,0.00012876,2]
[338131157,1726288295255,-277.03908186,0.00012876,2]
[338131158,1726288295266,-500.0,0.00012876,2]
[338131159,1726288295364,-520.24,0.00012876,2]
[338131160,1726288295376,-597.72,0.00012876,2]
[338131161,1726288295388,-500.0,0.00012876,2]
[338131162,1726288295399,-610.41,0.00012876,2]
[338131163,1726288295410,-500.0,0.00012876,2]
[338131164,1726288295421,-500.0,0.00012876,2]
[338131165,1726288295433,-500.0,0.00012876,2]
[338131166,1726288295443,-698.28,0.00012876,2]
[338131167,1726288295452,-500.0,0.00012876,2]
[338131168,1726288295462,-500.0,0.00012876,2]
[338131169,1726288295472,-500.0,0.00012876,2]
[338131170,1726288295482,-500.0,0.00012876,2]
[338131171,1726288295492,-500.0,0.00012876,2]
[338131172,1726288295504,-500.0,0.00012876,2]
[338131173,1726288295514,-500.0,0.00012876,2]
[338131174,1726288295524,-557.49311074,0.00012876,2]
[338131175,1726288295536,-514.34649404,0.00012876,2]
[338131176,1726288295545,-500.0,0.00012876,2]
[338131177,1726288295555,-765.23,0.00012876,2]
[338131178,1726288295564,-1974.5,0.00012876,2]
[338131179,1726288295574,-1161.96,0.00012876,2]
[338131180,1726288295583,-500.0,0.00012876,2]
[338131181,1726288295593,-648.64,0.00012876,2]
[338131182,1726288295603,-641.19,0.00012876,2]
[338131183,1726288295615,-501.1,0.00012876,2]
[338131184,1726288295626,-500.0,0.00012876,2]
[338131185,1726288295636,-151.0,0.00012877,2]
[338131186,1726288295645,-202.565272,0.00012877,2]
[338131187,1726288295655,-478.093966,0.00012877,2]
[338131188,1726288295666,-478.093966,0.00012877,2]
[338131189,1726288295676,-199.825326,0.00012877,2]
[338131190,1726288295686,-199.825326,0.00012877,2]
[338131191,1726288295695,-155.324845,0.00012877,2]
[338131192,1726288295705,-155.324845,0.00012877,2]
[338131193,1726288295715,-466.572096,0.00012877,2]
[338131194,1726288295725,-466.572096,0.00012877,2]
[338131195,1726288295736,-238.59392,0.00012877,2]
[338131196,1726288295746,-835.92147,0.00012877,2]
[338131197,1726288295758,-238.59392,0.00012877,2]
[338131198,1726288295769,-835.92147,0.00012877,2]
[338131199,1726288295779,-26910.71885623,0.000129,2]
[338131200,1726288295788,-328.380615,0.000129,2]
[338131201,1726288295798,-328.380615,0.000129,2]
[338131202,1726288295809,-202.969333,0.000129,2]
[338131203,1726288295820,-586.415355,0.000129,2]
[338131204,1726288295829,-202.969333,0.000129,2]
[338131205,1726288295839,-586.415355,0.000129,2]
[338131206,1726288295848,-185.938237,0.000129,2]
[338131207,1726288295859,-1139.624587,0.000129,2]
[338131208,1726288295870,-1139.624587,0.000129,2]
[338131209,1726288295882,-150.112233,0.00013,2]
[338131210,1726288295893,-150.112233,0.00013,2]
[338131211,1726288295903,-600.0,0.00013014,2]
[338131212,1726288295912,-600.0,0.00013014,2]
[338131213,1726288295921,-153.9408196,0.00013049,2]
[338131214,1726288295930,-282.34061,0.0001315,2]
[338131215,1726288295941,-151.0,0.0001315,2]
[338131216,1726288295952,-151.0,0.0001315,2]
[338131217,1726288295962,-151.0,0.0001315,2]
[338131218,1726288295973,-569.65578942,0.0001315,2]
[338131219,1726288295983,-183.271447,0.0001315,2]
[338131220,1726288295994,-183.271447,0.0001315,2]
[338131221,1726288296005,-500.0,0.0001315,2]
[338131222,1726288296016,-525.32476549,0.0001315,2]
[338131223,1726288296026,-500.0,0.0001315,2]
[338131224,1726288296035,-234.05786376,0.0001315,2]
[338131225,1726288296045,-500.0,0.0001315,2]
[338131226,1726288296055,-268.71012616,0.0001315,2]
[338131227,1726288296065,-180.60875186,0.0001315,2]
[338131228,1726288296074,-500.0,0.0001315,2]
[338131229,1726288296085,-500.0,0.0001315,2]
[338131230,1726288296097,-500.0,0.0001315,2]
[338131231,1726288296110,-288.76066193,0.0001315,2]
[338131232,1726288296120,-500.0,0.0001315,2]
[338131233,1726288296130,-315.79324189,0.0001315,2]
[338131234,1726288296140,-500.0,0.0001315,2]
[338131235,1726288296150,-500.0,0.0001315,2]
[338131236,1726288296161,-500.0,0.0001315,2]
[338131237,1726288296173,-500.0,0.0001315,2]
[338131238,1726288296184,-598.22236803,0.0001315,2]
[338131239,1726288296196,-245.357503,0.0001315,2]
[338131240,1726288296205,-245.357503,0.0001315,2]
[338131241,1726288296214,-230.662603,0.0001315,2]
[338131242,1726288296223,-500.0,0.0001315,2]
[338131243,1726288296232,-500.0,0.0001315,2]
[338131244,1726288296242,-500.0,0.0001315,2]
[338131245,1726288296253,-500.0,0.0001315,2]
[338131246,1726288296263,-500.0,0.0001315,2]
[338131247,1726288296272,-151.0,0.0001315,2]
[338131248,1726288296281,-500.0,0.0001315,2]
[338131249,1726288296292,-533.07,0.0001315,2]
[338131250,1726288296303,-2896.96,0.0001315,2]
[338131251,1726288296312,-500.0,0.0001315,2]
[338131252,1726288296323,-500.0,0.0001315,2]
[338131253,1726288296333,-500.0,0.0001315,2]
[338131254,1726288296343,-500.0,0.0001315,2]
[338131255,1726288296354,-500.0,0.0001315,2]
[338131256,1726288296364,-151.0,0.0001315,2]
[338131257,1726288296374,-500.0,0.0001315,2]
[338131258,1726288296385,-614.54,0.0001315,2]
[338131259,1726288296396,-500.0,0.0001315,2]
[338131260,1726288296405,-257.045391,0.0001315,2]
[338131261,1726288296414,-500.0,0.0001315,2]
[338131262,1726288296423,-505.79303213,0.0001315,2]
[338131263,1726288296433,-257.045391,0.0001315,2]
[338131264,1726288296447,-500.0,0.0001315,2]
[338131265,1726288296458,-500.0,0.0001315,2]
[338131266,1726288296467,-627.53,0.0001315,2]
[338131267,1726288296477,-500.0,0.0001315,2]
[338131268,1726288296486,-582.99,0.0001315,2]
[338131269,1726288296496,-500.0,0.0001315,2]
[338131270,1726288296506,-872.57,0.0001315,2]
[338131271,1726288296515,-157.95665,0.0001315,2]
[338131272,1726288296524,-1337.62,0.0001315,2]
[338131273,1726288296534,-465.90453221,0.0001315,2]
[338131274,1726288296543,-500.0,0.0001315,2]
[338131275,1726288296551,-236.40837918,0.0001315,2]
[338131276,1726288296561,-500.0,0.0001315,2]
[338131277,1726288296571,-500.0,0.0001315,2]
[338131278,1726288296583,-500.0,0.0001315,2]
[338131279,1726288296593,-500.0,0.0001315,2]
[338131280,1726288296603,-492.85817535,0.0001315,2]
[338131281,1726288296617,-858.33,0.0001315,2]
[338131282,1726288296626,-500.0,0.0001315,2]
[338131283,1726288296636,-540.17137145,0.0001315,2]
[338131284,1726288296646,-500.0,0.0001315,2]
[338131285,1726288296656,-217.85071958,0.0001315,2]
[338131286,1726288296667,-165.124149,0.0001315,2]
[338131287,1726288296680,-165.124149,0.0001315,2]
[338131288,1726288296694,-325.341971,0.0001315,2]
[338131289,1726288296705,-325.341971,0.0001315,2]
[338131290,1726288296715,-500.0,0.0001315,2]
[338131291,1726288296727,-500.0,0.0001315,2]
[338131292,1726288296738,-500.0,0.0001315,2]
[338131293,1726288296750,-759.03,0.0001315,2]
[338131294,1726288296760,-2617.46,0.0001315,2]
[338131295,1726288296770,-500.0,0.0001315,2]
[338131296,1726288296780,-599.74032808,0.0001315,2]
[338131297,1726288296790,-500.0,0.0001315,2]
[338131298,1726288296801,-500.0,0.0001315,2]
[338131299,1726288296811,-500.0,0.0001315,2]
[338131300,1726288296822,-500.0,0.0001315,2]
[338131301,1726288296832,-500.0,0.0001315,2]
[338131302,1726288296843,-506.82357252,0.0001315,2]
[338131303,1726288296854,-307.13875216,0.0001315,2]
[338131304,1726288296864,-500.0,0.0001315,2]
[338131305,1726288296874,-5361.21,0.0001315,2]
[338131306,1726288296886,-1342.53,0.0001315,2]
[338131307,1726288296897,-500.0,0.0001315,2]
[338131308,1726288296907,-956.17,0.0001315,2]
[338131309,1726288297001,-500.0,0.0001315,2]
[338131310,1726288297011,-771.92,0.0001315,2]
[338131311,1726288297021,-1179.28,0.0001315,2]
[338131312,1726288297031,-500.0,0.0001315,2]
[338131313,1726288297041,-500.0,0.0001315,2]
[338131314,1726288297054,-500.0,0.0001315,2]
[338131315,1726288297065,-538.69,0.0001315,2]
[338131316,1726288297076,-510.95337596,0.0001315,2]
[338131317,1726288297086,-500.0,0.0001315,2]
[338131318,1726288297096,-500.0,0.0001315,2]
[338131319,1726288297105,-729.42,0.0001315,2]
[338131320,1726288297115,-500.0,0.0001315,2]
[338131321,1726288297127,-4163.88,0.0001315,2]
[338131322,1726288297137,-500.0,0.0001315,2]
[338131323,1726288297150,-500.0,0.0001315,2]
[338131324,1726288297159,-500.0,0.0001315,2]
[338131325,1726288297170,-220.34076288,0.0001315,2]
[338131326,1726288297180,-17291.4,0.0001315,2]
[338131327,1726288297192,-500.0,0.0001315,2]
[338131328,1726288297203,-500.0,0.0001315,2]
[338131329,1726288297213,-500.0,0.0001315,2]
[338131330,1726288297223,-487.7946627,0.0001315,2]
[338131331,1726288297234,-2999.39,0.0001315,2]
[338131332,1726288297243,-500.0,0.0001315,2]
[338131333,1726288297253,-500.0,0.0001315,2]
[338131334,1726288297263,-504.42497772,0.0001315,2]
[338131335,1726288297272,-675.64,0.0001315,2]
[338131336,1726288297282,-500.0,0.0001315,2]
[338131337,1726288297291,-623.26,0.0001315,2]
[338131338,1726288297302,-507.01740436,0.0001315,2]
[338131339,1726288297311,-564.02393775,0.0001315,2]
[338131340,1726288297323,-500.0,0.0001315,2]
[338131341,1726288297333,-500.0,0.0001315,2]
[338131342,1726288297346,-3458.33,0.0001315,2]
[338131343,1726288297357,-500.0,0.0001315,2]
[338131344,1726288297367,-509.31,0.0001315,2]
[338131345,1726288297377,-523.21299648,0.0001315,2]
[338131346,1726288297387,-6026.45,0.0001315,2]
[338131347,1726288297399,-500.0,0.0001315,2]
[338131348,1726288297409,-211.0344086,0.0001315,2]
[338131349,1726288297420,-873.79,0.0001315,2]
[338131350,1726288297430,-500.0,0.0001315,2]
[338131351,1726288297441,-500.0,0.0001315,2]
[338131352,1726288297451,-500.0,0.0001315,2]
[338131353,1726288297462,-731.61,0.0001315,2]
[338131354,1726288297472,-607.69422485,0.0001315,2]
[338131355,1726288297482,-500.0,0.0001315,2]
[338131356,1726288297493,-520.24,0.0001315,2]
[338131357,1726288297503,-597.72,0.0001315,2]
[338131358,1726288297513,-486.87049218,0.0001315,2]
[338131359,1726288297523,-610.41,0.0001315,2]
[338131360,1726288297533,-507.1528704,0.0001315,2]
[338131361,1726288297544,-500.0,0.0001315,2]
[338131362,1726288297554,-500.0,0.0001315,2]
[338131363,1726288297563,-698.28,0.0001315,2]
[338131364,1726288297573,-574.44046879,0.0001315,2]
[338131365,1726288297583,-500.0,0.0001315,2]
[338131366,1726288297595,-558.66082852,0.0001315,2]
[338131367,1726288297605,-500.0,0.0001315,2]
[338131368,1726288297619,-500.0,0.0001315,2]
[338131369,1726288297628,-500.0,0.0001315,2]
[338131370,1726288297638,-500.0,0.0001315,2]
[338131371,1726288297649,-500.0,0.0001315,2]
[338131372,1726288297659,-1974.5,0.0001315,2]
[338131373,1726288297669,-765.23,0.0001315,2]
[338131374,1726288297679,-1161.96,0.0001315,2]
[338131375,1726288297691,-506.62844549,0.0001315,2]
[338131376,1726288297704,-648.64,0.0001315,2]
[338131377,1726288297715,-641.19,0.0001315,2]
[338131378,1726288297738,-501.1,0.0001315,2]
[338131379,1726288297757,-533.36182414,0.0001315,2]
[338131380,1726288297776,-875.07,0.000134,2]
[338131381,1726288297799,-151.0,0.00013424,2]
[338131382,1726288297820,-152.786199,0.00013424,2]
[338131383,1726288297836,-500.0,0.00013424,2]
[338131384,1726288297857,-500.0,0.00013424,2]
[338131385,1726288297873,-500.0,0.00013424,2]
[338131386,1726288297893,-500.0,0.00013424,2]
[338131387,1726288297911,-500.0,0.00013424,2]
[338131388,1726288297932,-500.0,0.00013424,2]
[338131389,1726288297947,-500.0,0.00013424,2]
[338131390,1726288297961,-500.0,0.00013424,2]
[338131391,1726288297977,-500.0,0.00013424,2]
[338131392,1726288297995,-500.0,0.00013424,2]
[338131393,1726288298012,-500.0,0.00013424,2]
[338131394,1726288298027,-500.0,0.00013424,2]
[338131395,1726288298044,-500.0,0.00013424,2]